[Event "*** Titled Tuesday Blitz"]
[Site "Chess.com"]
[Date "2020.11.10"]
[Round "9"]
[White "canary2016"]
[Black "MVM2008"]
[Result "0-1"]
[WhiteElo "2012"]
[BlackElo "2185"]
[TimeControl "180+1"]
[EndTime "11:50:34 PST"]
[Termination "MVM2008 won by checkmate"]

1. d4 {[%clk 0:03:00.9]} 1... Nf6 {[%clk 0:02:57.3]} 2. Bf4 {[%clk 0:02:56.4]}
2... g6 {[%clk 0:02:56.1]} 3. Nc3 {[%clk 0:02:54.6]} 3... Bg7 {[%clk 0:02:56.7]}
4. e4 {[%clk 0:02:54.5]} 4... d6 {[%clk 0:02:56.8]} 5. Nf3 {[%clk 0:02:49.4]}
5... c6 {[%clk 0:02:53]} 6. Bc4 {[%clk 0:02:46.6]} 6... O-O {[%clk 0:02:47.9]}
7. Qd2 {[%clk 0:02:46]} 7... Nxe4 {[%clk 0:02:45.7]} 8. Nxe4 {[%clk 0:02:42.3]}
8... d5 {[%clk 0:02:44.7]} 9. Bxd5 {[%clk 0:02:37.9]} 9... Qxd5 {[%clk
0:02:41.5]} 10. Ng3 {[%clk 0:02:32.8]} 10... Bg4 {[%clk 0:02:39.6]} 11. Ne5
{[%clk 0:02:17.5]} 11... Bxe5 {[%clk 0:02:28.2]} 12. Bxe5 {[%clk 0:02:15.7]}
12... Qxg2 {[%clk 0:02:28.2]} 13. Qh6 {[%clk 0:02:14.3]} 13... f6 {[%clk
0:02:27.3]} 14. Bxb8 {[%clk 0:02:02.4]} 14... Raxb8 {[%clk 0:02:22.7]} 15. Qf4
{[%clk 0:02:00.8]} 15... Qf3 {[%clk 0:02:21.6]} 16. Qxf3 {[%clk 0:01:57.8]}
16... Bxf3 {[%clk 0:02:22.5]} 17. Rg1 {[%clk 0:01:57.5]} 17... e5 {[%clk
0:02:21.7]} 18. dxe5 {[%clk 0:01:56.2]} 18... Rfe8 {[%clk 0:02:22.1]} 19. Kd2
{[%clk 0:01:52.2]} 19... Rxe5 {[%clk 0:02:18.5]} 20. Rae1 {[%clk 0:01:51.7]}
20... Rbe8 {[%clk 0:02:16.5]} 21. Rxe5 {[%clk 0:01:49]} 21... Rxe5 {[%clk
0:02:17.4]} 22. Kc3 {[%clk 0:01:49]} 22... Bd5 {[%clk 0:02:05.7]} 23. Rd1 {[%clk
0:01:43.8]} 23... Re8 {[%clk 0:02:02]} 24. Rd3 {[%clk 0:01:37]} 24... f5 {[%clk
0:02:00.7]} 25. Rd2 {[%clk 0:01:33.1]} 25... Kf7 {[%clk 0:02:00.3]} 26. Ne2
{[%clk 0:01:32.8]} 26... Be6 {[%clk 0:01:54.1]} 27. Nf4 {[%clk 0:01:31.2]} 27...
Re7 {[%clk 0:01:51.1]} 28. Rd8 {[%clk 0:01:28.9]} 28... g5 {[%clk 0:01:42]} 29.
Nxe6 {[%clk 0:01:20.9]} 29... Kxe6 {[%clk 0:01:41.4]} 30. Rh8 {[%clk 0:01:20]}
30... Ke5 {[%clk 0:01:40.1]} 31. Rg8 {[%clk 0:01:19.9]} 31... Kf4 {[%clk
0:01:39.6]} 32. Ra8 {[%clk 0:01:17.3]} 32... a6 {[%clk 0:01:38.6]} 33. Rf8
{[%clk 0:01:15.3]} 33... h5 {[%clk 0:01:35.5]} 34. Kd3 {[%clk 0:01:12.3]} 34...
Re5 {[%clk 0:01:31.9]} 35. Rf7 {[%clk 0:01:08.5]} 35... Kf3 {[%clk 0:01:31]} 36.
Rxb7 {[%clk 0:01:07.7]} 36... Kxf2 {[%clk 0:01:31.2]} 37. Rg7 {[%clk 0:01:06.5]}
37... g4 {[%clk 0:01:30.8]} 38. Rg6 {[%clk 0:01:06.4]} 38... f4 {[%clk
0:01:29.3]} 39. Rxc6 {[%clk 0:01:05.4]} 39... g3 {[%clk 0:01:29.5]} 40. hxg3
{[%clk 0:01:04.8]} 40... fxg3 {[%clk 0:01:30.4]} 41. Rg6 {[%clk 0:01:04.8]}
41... g2 {[%clk 0:01:30.2]} 42. c4 {[%clk 0:01:02.8]} 42... g1=Q {[%clk
0:01:29.8]} 43. Rxg1 {[%clk 0:01:02.5]} 43... Kxg1 {[%clk 0:01:30.7]} 44. b4
{[%clk 0:01:02.4]} 44... h4 {[%clk 0:01:30.9]} 45. Kd4 {[%clk 0:01:01.8]} 45...
Re8 {[%clk 0:01:30.5]} 46. Kd5 {[%clk 0:01:01.5]} 46... h3 {[%clk 0:01:31.4]}
47. c5 {[%clk 0:01:01.7]} 47... h2 {[%clk 0:01:32.3]} 48. c6 {[%clk 0:01:00.8]}
48... h1=Q+ {[%clk 0:01:33.2]} 49. Kd6 {[%clk 0:01:01.1]} 49... Rc8 {[%clk
0:01:33.3]} 50. c7 {[%clk 0:01:00.2]} 50... Qh8 {[%clk 0:01:32.9]} 51. a4 {[%clk
0:00:58.9]} 51... Qf8+ {[%clk 0:01:33.4]} 52. Kd7 {[%clk 0:00:57.6]} 52... Rxc7+
{[%clk 0:01:32.1]} 53. Kxc7 {[%clk 0:00:57.4]} 53... Qxb4 {[%clk 0:01:33]} 54.
Kc6 {[%clk 0:00:56.5]} 54... Qxa4+ {[%clk 0:01:33.9]} 55. Kb6 {[%clk 0:00:56.2]}
55... Qb5+ {[%clk 0:01:34.2]} 56. Ka7 {[%clk 0:00:55.9]} 56... a5 {[%clk
0:01:34.4]} 57. Ka8 {[%clk 0:00:55.7]} 57... a4 {[%clk 0:01:35.3]} 58. Ka7
{[%clk 0:00:56.2]} 58... a3 {[%clk 0:01:36.2]} 59. Ka8 {[%clk 0:00:57.1]} 59...
a2 {[%clk 0:01:37.1]} 60. Ka7 {[%clk 0:00:58]} 60... a1=Q# {[%clk 0:01:37.5]}
0-1

[Event "*** Titled Tuesday Blitz"]
[Site "Chess.com"]
[Date "2020.11.10"]
[Round "9"]
[White "Natalya_Buksa"]
[Black "lilleper1"]
[Result "0-1"]
[WhiteElo "2571"]
[BlackElo "2817"]
[TimeControl "180+1"]
[EndTime "11:50:39 PST"]
[Termination "lilleper1 won by checkmate"]

1. d4 {[%clk 0:03:00.9]} 1... Nf6 {[%clk 0:02:59.7]} 2. Nc3 {[%clk 0:03:00.1]}
2... d5 {[%clk 0:02:59.4]} 3. Bf4 {[%clk 0:02:59.9]} 3... e6 {[%clk 0:02:55.5]}
4. e3 {[%clk 0:03:00.1]} 4... Bb4 {[%clk 0:02:53.8]} 5. Bd3 {[%clk 0:03:00.4]}
5... c5 {[%clk 0:02:50.9]} 6. dxc5 {[%clk 0:03:00.2]} 6... Nbd7 {[%clk
0:02:48.5]} 7. Ne2 {[%clk 0:02:52.7]} 7... a6 {[%clk 0:02:42.7]} 8. O-O {[%clk
0:02:41.9]} 8... Bxc5 {[%clk 0:02:38.4]} 9. e4 {[%clk 0:02:38.6]} 9... d4 {[%clk
0:02:29.5]} 10. Na4 {[%clk 0:02:37.9]} 10... e5 {[%clk 0:02:29.6]} 11. Nxc5
{[%clk 0:02:35.9]} 11... exf4 {[%clk 0:02:17]} 12. Nxd7 {[%clk 0:02:34.6]} 12...
Nxd7 {[%clk 0:02:14.9]} 13. Nxf4 {[%clk 0:02:23.6]} 13... O-O {[%clk 0:02:15]}
14. Nd5 {[%clk 0:02:23.2]} 14... Re8 {[%clk 0:02:14.5]} 15. f4 {[%clk
0:02:21.6]} 15... Nc5 {[%clk 0:02:13.1]} 16. Qf3 {[%clk 0:02:21]} 16... Be6
{[%clk 0:02:09]} 17. Rfe1 {[%clk 0:02:08.3]} 17... Bxd5 {[%clk 0:01:55.7]} 18.
exd5 {[%clk 0:02:08.4]} 18... Qa5 {[%clk 0:01:52.4]} 19. Re5 {[%clk 0:01:56.2]}
19... Nd7 {[%clk 0:01:51.6]} 20. Bxh7+ {[%clk 0:01:47.6]} 20... Kf8 {[%clk
0:01:28.1]} 21. Rxe8+ {[%clk 0:01:30.4]} 21... Rxe8 {[%clk 0:01:29]} 22. Qf2
{[%clk 0:01:24.2]} 22... Qxd5 {[%clk 0:01:24.9]} 23. Rd1 {[%clk 0:01:16.5]}
23... Nf6 {[%clk 0:01:20.6]} 24. Bd3 {[%clk 0:01:14]} 24... Re3 {[%clk
0:01:16.7]} 25. Bf1 {[%clk 0:01:12.8]} 25... Qe4 {[%clk 0:01:11.1]} 26. Rd3
{[%clk 0:01:02.2]} 26... Ng4 {[%clk 0:00:58.4]} 27. Qh4 {[%clk 0:00:53.1]} 27...
Qxf4 {[%clk 0:00:54.3]} 28. h3 {[%clk 0:00:42.8]} 28... Qh2# {[%clk 0:00:39.7]}
0-1

[Event "*** Titled Tuesday Blitz"]
[Site "Chess.com"]
[Date "2020.11.10"]
[Round "9"]
[White "Mr_Sinigami"]
[Black "VinzentSpitzl"]
[Result "1-0"]
[WhiteElo "2537"]
[BlackElo "2337"]
[TimeControl "180+1"]
[EndTime "11:50:50 PST"]
[Termination "Mr_Sinigami won by resignation"]

1. d4 {[%clk 0:03:00.9]} 1... d5 {[%clk 0:02:59.2]} 2. Nf3 {[%clk 0:03:01.3]}
2... Nf6 {[%clk 0:02:58.8]} 3. Bf4 {[%clk 0:03:01.7]} 3... c5 {[%clk 0:02:58.1]}
4. e3 {[%clk 0:03:01.9]} 4... Nc6 {[%clk 0:02:58.3]} 5. c3 {[%clk 0:02:57.2]}
5... Qb6 {[%clk 0:02:58]} 6. Qc1 {[%clk 0:02:54.6]} 6... Bf5 {[%clk 0:02:55.3]}
7. dxc5 {[%clk 0:02:53.9]} 7... Qxc5 {[%clk 0:02:53]} 8. Nbd2 {[%clk 0:02:54.5]}
8... e6 {[%clk 0:02:49.4]} 9. Nd4 {[%clk 0:02:48]} 9... Bg6 {[%clk 0:02:43.6]}
10. N2f3 {[%clk 0:02:46.3]} 10... Be7 {[%clk 0:02:37.7]} 11. Be2 {[%clk
0:02:37.2]} 11... O-O {[%clk 0:02:32.7]} 12. O-O {[%clk 0:02:36.7]} 12... Ne4
{[%clk 0:02:19.8]} 13. Nxc6 {[%clk 0:02:22.1]} 13... bxc6 {[%clk 0:02:17]} 14.
Ne5 {[%clk 0:02:22.6]} 14... Rfd8 {[%clk 0:02:01.8]} 15. c4 {[%clk 0:02:16.4]}
15... f6 {[%clk 0:01:49.9]} 16. b4 {[%clk 0:02:07]} 16... Qb6 {[%clk 0:01:33.1]}
17. c5 {[%clk 0:02:06.4]} 17... Qb7 {[%clk 0:01:27]} 18. Nxg6 {[%clk 0:02:04.7]}
18... hxg6 {[%clk 0:01:27.2]} 19. f3 {[%clk 0:02:04.1]} 19... e5 {[%clk
0:01:02.1]} 20. fxe4 {[%clk 0:02:03]} 20... exf4 {[%clk 0:01:01.9]} 21. exd5
{[%clk 0:02:03.2]} 21... cxd5 {[%clk 0:00:58.2]} 22. Rxf4 {[%clk 0:01:58.4]}
22... f5 {[%clk 0:00:49.8]} 23. b5 {[%clk 0:01:50.9]} 23... a6 {[%clk
0:00:41.8]} 24. c6 {[%clk 0:01:46.6]} 24... Qb6 {[%clk 0:00:38.8]} 25. a4 {[%clk
0:01:44.4]} 25... Bc5 {[%clk 0:00:38]} 26. Rf3 {[%clk 0:01:36]} 26... d4 {[%clk
0:00:36.4]} 27. a5 {[%clk 0:01:31.9]} 27... Qa7 {[%clk 0:00:27.2]} 28. b6 {[%clk
0:01:30.9]} 28... Qe7 {[%clk 0:00:26]} 29. c7 {[%clk 0:01:29.9]} 29... Re8
{[%clk 0:00:20.5]} 30. b7 {[%clk 0:01:22.4]} 30... dxe3 {[%clk 0:00:20]} 31.
bxa8=Q {[%clk 0:01:12.8]} 31... Rxa8 {[%clk 0:00:20.9]} 32. Qc4+ {[%clk
0:01:10.5]} 32... Kf8 {[%clk 0:00:20.2]} 33. Rc1 {[%clk 0:01:10.6]} 1-0

[Event "*** Titled Tuesday Blitz"]
[Site "Chess.com"]
[Date "2020.11.10"]
[Round "9"]
[White "fabianvivasz"]
[Black "Love_craft"]
[Result "0-1"]
[WhiteElo "2397"]
[BlackElo "2600"]
[TimeControl "180+1"]
[EndTime "11:50:51 PST"]
[Termination "Love_craft won by checkmate"]

1. e4 {[%clk 0:02:59]} 1... g6 {[%clk 0:02:59.8]} 2. d4 {[%clk 0:02:58.5]} 2...
Bg7 {[%clk 0:03:00.2]} 3. Nc3 {[%clk 0:02:59]} 3... d6 {[%clk 0:03:00.6]} 4. f4
{[%clk 0:02:58]} 4... a6 {[%clk 0:03:00.7]} 5. Nf3 {[%clk 0:02:54.5]} 5... b5
{[%clk 0:03:01]} 6. Bd3 {[%clk 0:02:54.7]} 6... Bb7 {[%clk 0:03:01.2]} 7. e5
{[%clk 0:02:55.2]} 7... e6 {[%clk 0:03:01.8]} 8. Qe2 {[%clk 0:02:38.4]} 8... Ne7
{[%clk 0:03:00.7]} 9. a4 {[%clk 0:02:34.5]} 9... bxa4 {[%clk 0:02:45.7]} 10.
Rxa4 {[%clk 0:02:22.3]} 10... O-O {[%clk 0:02:45.6]} 11. O-O {[%clk 0:02:18]}
11... Nf5 {[%clk 0:02:31.4]} 12. Qf2 {[%clk 0:01:53.9]} 12... Nd7 {[%clk
0:02:25.2]} 13. Ng5 {[%clk 0:01:08.4]} 13... c5 {[%clk 0:02:14.4]} 14. Bxf5
{[%clk 0:01:03]} 14... exf5 {[%clk 0:01:56.2]} 15. e6 {[%clk 0:00:55.8]} 15...
cxd4 {[%clk 0:01:47.3]} 16. Ne2 {[%clk 0:00:36.2]} 16... Nc5 {[%clk 0:01:43.1]}
17. exf7+ {[%clk 0:00:34.9]} 17... Rxf7 {[%clk 0:01:23.4]} 18. Nxf7 {[%clk
0:00:32.9]} 18... Kxf7 {[%clk 0:01:24.3]} 19. Ra3 {[%clk 0:00:24.9]} 19... Qb6
{[%clk 0:01:10.1]} 20. Kh1 {[%clk 0:00:19.8]} 20... Ne4 {[%clk 0:00:58.6]} 21.
Qe1 {[%clk 0:00:17.2]} 21... Qc6 {[%clk 0:00:55.4]} 22. Rg1 {[%clk 0:00:07.2]}
22... Re8 {[%clk 0:00:54.7]} 23. Qd1 {[%clk 0:00:04.2]} 23... Nf2# {[%clk
0:00:54]} 0-1

[Event "*** Titled Tuesday Blitz"]
[Site "Chess.com"]
[Date "2020.11.10"]
[Round "9"]
[White "VerdeNotte"]
[Black "Azerichess"]
[Result "1/2-1/2"]
[WhiteElo "2898"]
[BlackElo "2976"]
[TimeControl "180+1"]
[EndTime "11:50:52 PST"]
[Termination "Game drawn by agreement"]

1. e4 {[%clk 0:03:00.9]} 1... c6 {[%clk 0:02:58.2]} 2. d4 {[%clk 0:03:00.1]}
2... d5 {[%clk 0:02:58.2]} 3. exd5 {[%clk 0:02:59.7]} 3... cxd5 {[%clk
0:02:58.2]} 4. Nf3 {[%clk 0:03:00.1]} 4... Nc6 {[%clk 0:02:57.9]} 5. Ne5 {[%clk
0:03:00.1]} 5... e6 {[%clk 0:02:51.2]} 6. Bb5 {[%clk 0:02:59.7]} 6... Qc7 {[%clk
0:02:48.6]} 7. c4 {[%clk 0:02:21.1]} 7... Bb4+ {[%clk 0:02:43.4]} 8. Bd2 {[%clk
0:02:20]} 8... Bxd2+ {[%clk 0:02:43.2]} 9. Nxd2 {[%clk 0:02:19.8]} 9... Ne7
{[%clk 0:02:43.2]} 10. cxd5 {[%clk 0:02:15.1]} 10... exd5 {[%clk 0:02:43.3]} 11.
Rc1 {[%clk 0:02:11.7]} 11... O-O {[%clk 0:02:43]} 12. O-O {[%clk 0:02:09.3]}
12... Qb6 {[%clk 0:02:39.3]} 13. Bxc6 {[%clk 0:02:09.4]} 13... bxc6 {[%clk
0:02:18.5]} 14. Nb3 {[%clk 0:02:07.3]} 14... a5 {[%clk 0:02:18.2]} 15. Re1
{[%clk 0:02:04.5]} 15... f6 {[%clk 0:01:37.7]} 16. Nf3 {[%clk 0:01:54.2]} 16...
Nf5 {[%clk 0:01:34.3]} 17. Qc2 {[%clk 0:01:47.6]} 17... a4 {[%clk 0:01:12.8]}
18. Nc5 {[%clk 0:01:47.3]} 18... Qa7 {[%clk 0:01:13.3]} 19. Ne6 {[%clk
0:01:42.7]} 19... Bxe6 {[%clk 0:01:12.1]} 20. Rxe6 {[%clk 0:01:43.6]} 20... Nxd4
{[%clk 0:01:12.6]} 21. Nxd4 {[%clk 0:01:43.9]} 21... Qxd4 {[%clk 0:01:13.5]} 22.
Rxc6 {[%clk 0:01:38.5]} 22... Rfb8 {[%clk 0:01:12]} 23. Rc3 {[%clk 0:01:28.7]}
23... h6 {[%clk 0:01:07.1]} 24. Rd1 {[%clk 0:01:24.6]} 24... Qe4 {[%clk
0:01:03]} 25. g3 {[%clk 0:01:10.8]} 25... Rb5 {[%clk 0:00:40.3]} 26. Qd2 {[%clk
0:00:55.4]} 26... Rab8 {[%clk 0:00:37]} 27. b3 {[%clk 0:00:48.2]} 27... axb3
{[%clk 0:00:34.4]} 28. axb3 {[%clk 0:00:47.6]} 28... Rxb3 {[%clk 0:00:26.2]} 29.
Rxb3 {[%clk 0:00:47.7]} 29... Rxb3 {[%clk 0:00:27.1]} 1/2-1/2

[Event "*** Titled Tuesday Blitz"]
[Site "Chess.com"]
[Date "2020.11.10"]
[Round "9"]
[White "DinaBelenkaya"]
[Black "enriquetejedor"]
[Result "1-0"]
[WhiteElo "2345"]
[BlackElo "2469"]
[TimeControl "180+1"]
[EndTime "11:50:53 PST"]
[Termination "DinaBelenkaya won by checkmate"]

1. e4 {[%clk 0:03:00.9]} 1... Nc6 {[%clk 0:02:47]} 2. d4 {[%clk 0:02:58.2]} 2...
d6 {[%clk 0:02:43.6]} 3. d5 {[%clk 0:02:52.5]} 3... Ne5 {[%clk 0:02:39.7]} 4. c4
{[%clk 0:02:52.4]} 4... Nf6 {[%clk 0:02:33.2]} 5. Nc3 {[%clk 0:02:50.5]} 5... g6
{[%clk 0:02:22.6]} 6. Be2 {[%clk 0:02:49.3]} 6... Bg7 {[%clk 0:02:16.6]} 7. h3
{[%clk 0:02:49.4]} 7... O-O {[%clk 0:02:11]} 8. f4 {[%clk 0:02:49]} 8... Ned7
{[%clk 0:02:00.9]} 9. Nf3 {[%clk 0:02:49.3]} 9... c6 {[%clk 0:01:33]} 10. O-O
{[%clk 0:02:46.4]} 10... Nc5 {[%clk 0:01:23.7]} 11. e5 {[%clk 0:02:31.5]} 11...
Nfe4 {[%clk 0:01:19.8]} 12. Nxe4 {[%clk 0:02:23.5]} 12... Nxe4 {[%clk
0:01:17.6]} 13. Qd4 {[%clk 0:02:13.1]} 13... Ng3 {[%clk 0:01:13.2]} 14. Re1
{[%clk 0:02:10.6]} 14... Nf5 {[%clk 0:00:57.9]} 15. Qf2 {[%clk 0:02:06.2]} 15...
cxd5 {[%clk 0:00:32.7]} 16. g4 {[%clk 0:02:06]} 16... Nh6 {[%clk 0:00:21.4]} 17.
cxd5 {[%clk 0:02:05.6]} 17... dxe5 {[%clk 0:00:21.2]} 18. fxe5 {[%clk
0:02:05.8]} 18... Qxd5 {[%clk 0:00:21]} 19. Rd1 {[%clk 0:02:01.8]} 19... Qe6
{[%clk 0:00:16.2]} 20. Bf4 {[%clk 0:01:54.7]} 20... f6 {[%clk 0:00:02]} 21. Rac1
{[%clk 0:01:45.6]} 21... Nf7 {[%clk 0:00:02.2]} 22. Bc4 {[%clk 0:01:45.2]} 22...
Qb6 {[%clk 0:00:01.4]} 23. Be3 {[%clk 0:01:44.3]} 23... Qa5 {[%clk 0:00:01.8]}
24. Rd5 {[%clk 0:01:41.8]} 24... b5 {[%clk 0:00:01.1]} 25. Rxb5 {[%clk 0:01:41]}
25... Qa4 {[%clk 0:00:01.4]} 26. b3 {[%clk 0:01:40.3]} 26... Qa6 {[%clk
0:00:01.8]} 27. Rb8 {[%clk 0:01:37.8]} 27... Qc6 {[%clk 0:00:02]} 28. Bxf7+
{[%clk 0:01:35.7]} 28... Kxf7 {[%clk 0:00:01.7]} 29. Rxc6 {[%clk 0:01:36.6]}
29... Rxb8 {[%clk 0:00:01.8]} 30. Bxa7 {[%clk 0:01:36.3]} 30... Rb7 {[%clk
0:00:01.8]} 31. Qc5 {[%clk 0:01:33]} 31... Bd7 {[%clk 0:00:02.3]} 32. e6+ {[%clk
0:01:32.8]} 32... Bxe6 {[%clk 0:00:02.1]} 33. Nd4 {[%clk 0:01:32.3]} 33... Bd7
{[%clk 0:00:01.6]} 34. Rc7 {[%clk 0:01:30.1]} 34... Rxc7 {[%clk 0:00:01.7]} 35.
Qxc7 {[%clk 0:01:31]} 35... Be8 {[%clk 0:00:01.9]} 36. Qc4+ {[%clk 0:01:30.1]}
36... e6 {[%clk 0:00:02.3]} 37. Qxe6# {[%clk 0:01:30.6]} 1-0

[Event "*** Titled Tuesday Blitz"]
[Site "Chess.com"]
[Date "2020.11.10"]
[Round "9"]
[White "Piotrek1979"]
[Black "nitpicker"]
[Result "0-1"]
[WhiteElo "2449"]
[BlackElo "2252"]
[TimeControl "180+1"]
[EndTime "11:50:54 PST"]
[Termination "nitpicker won by resignation"]

1. Nf3 {[%clk 0:03:00.9]} 1... Nf6 {[%clk 0:02:58.8]} 2. g3 {[%clk 0:02:59.9]}
2... b6 {[%clk 0:02:49]} 3. Bg2 {[%clk 0:03:00.8]} 3... Bb7 {[%clk 0:02:49.1]}
4. O-O {[%clk 0:03:00.8]} 4... e6 {[%clk 0:02:49.1]} 5. d3 {[%clk 0:03:01.2]}
5... c6 {[%clk 0:02:45.1]} 6. e4 {[%clk 0:03:00.6]} 6... d5 {[%clk 0:02:45.1]}
7. e5 {[%clk 0:03:00.7]} 7... Nfd7 {[%clk 0:02:45.1]} 8. d4 {[%clk 0:03:01.6]}
8... c5 {[%clk 0:02:41.6]} 9. c3 {[%clk 0:03:01.8]} 9... Nc6 {[%clk 0:02:39.9]}
10. Re1 {[%clk 0:03:00.8]} 10... h6 {[%clk 0:02:38.1]} 11. h4 {[%clk 0:03:00.4]}
11... Be7 {[%clk 0:02:37.1]} 12. Na3 {[%clk 0:02:53]} 12... a6 {[%clk
0:02:35.6]} 13. Nc2 {[%clk 0:02:51.7]} 13... Qc7 {[%clk 0:02:35.6]} 14. Bf4
{[%clk 0:02:46.3]} 14... O-O-O {[%clk 0:02:34.9]} 15. Ne3 {[%clk 0:02:44.2]}
15... Rdg8 {[%clk 0:02:26.7]} 16. Nxd5 {[%clk 0:02:43.4]} 16... exd5 {[%clk
0:02:22.7]} 17. e6 {[%clk 0:02:43.4]} 17... Bd6 {[%clk 0:02:22.8]} 18. exd7+
{[%clk 0:02:33.8]} 18... Qxd7 {[%clk 0:02:22.8]} 19. Bxd6 {[%clk 0:02:26.2]}
19... Qxd6 {[%clk 0:02:22.1]} 20. Ne5 {[%clk 0:02:26.8]} 20... Nd8 {[%clk
0:02:04]} 21. Qg4+ {[%clk 0:02:08.9]} 21... Kc7 {[%clk 0:01:57.3]} 22. Qf4
{[%clk 0:02:07.7]} 22... g5 {[%clk 0:01:51.6]} 23. hxg5 {[%clk 0:02:00.6]} 23...
hxg5 {[%clk 0:01:51.2]} 24. Qf5 {[%clk 0:01:23.8]} 24... Bc8 {[%clk 0:01:42.4]}
25. Qf3 {[%clk 0:01:24.3]} 25... Be6 {[%clk 0:01:41.6]} 26. c4 {[%clk
0:01:24.9]} 26... g4 {[%clk 0:01:41.8]} 27. Qa3 {[%clk 0:01:20.7]} 27... f6
{[%clk 0:01:20.4]} 28. Qxa6 {[%clk 0:01:08.1]} 28... fxe5 {[%clk 0:01:15.4]} 29.
dxe5 {[%clk 0:01:09]} 29... Qc6 {[%clk 0:01:12.3]} 30. cxd5 {[%clk 0:00:48.5]}
30... Bxd5 {[%clk 0:01:08.5]} 31. Qa7+ {[%clk 0:00:19.6]} 31... Nb7 {[%clk
0:01:08]} 0-1

[Event "*** Titled Tuesday Blitz"]
[Site "Chess.com"]
[Date "2020.11.10"]
[Round "9"]
[White "CM_rui"]
[Black "Ranindu2003"]
[Result "0-1"]
[WhiteElo "2395"]
[BlackElo "2544"]
[TimeControl "180+1"]
[EndTime "11:50:56 PST"]
[Termination "Ranindu2003 won on time"]

1. e4 {[%clk 0:03:00.9]} 1... g6 {[%clk 0:02:59.5]} 2. d4 {[%clk 0:03:00.7]}
2... Bg7 {[%clk 0:03:00.4]} 3. c4 {[%clk 0:03:01.1]} 3... d6 {[%clk 0:03:00.3]}
4. Nc3 {[%clk 0:03:01]} 4... Nc6 {[%clk 0:02:59.6]} 5. Nf3 {[%clk 0:03:00]} 5...
Bg4 {[%clk 0:02:59.3]} 6. Be3 {[%clk 0:02:57.7]} 6... e5 {[%clk 0:02:58.6]} 7.
d5 {[%clk 0:02:54.1]} 7... Nd4 {[%clk 0:02:58.6]} 8. Bxd4 {[%clk 0:02:42.4]}
8... exd4 {[%clk 0:02:59.5]} 9. Nb5 {[%clk 0:02:40.2]} 9... c6 {[%clk
0:02:30.4]} 10. Nbxd4 {[%clk 0:02:33.4]} 10... Bxf3 {[%clk 0:02:14.3]} 11. gxf3
{[%clk 0:02:30.2]} 11... Qa5+ {[%clk 0:02:10.8]} 12. Ke2 {[%clk 0:02:25.8]}
12... Qc5 {[%clk 0:02:03.7]} 13. Ke3 {[%clk 0:01:42.3]} 13... f5 {[%clk
0:01:50.8]} 14. f4 {[%clk 0:01:31.5]} 14... Nf6 {[%clk 0:01:38.7]} 15. b4 {[%clk
0:00:49.8]} 15... Ng4+ {[%clk 0:01:31.3]} 16. Kf3 {[%clk 0:00:39]} 16... Qxd4
{[%clk 0:01:29.5]} 17. Qxd4 {[%clk 0:00:36.5]} 17... Bxd4 {[%clk 0:01:30.4]} 18.
Re1 {[%clk 0:00:28.6]} 18... O-O-O {[%clk 0:01:15.2]} 19. exf5 {[%clk 0:00:20]}
19... Nxf2 {[%clk 0:01:14.7]} 20. Rg1 {[%clk 0:00:18]} 20... gxf5 {[%clk
0:01:14.3]} 21. Rg5 {[%clk 0:00:14.7]} 21... Rhf8 {[%clk 0:01:08.2]} 22. Re7
{[%clk 0:00:12.4]} 22... Bf6 {[%clk 0:01:05.2]} 23. Rxh7 {[%clk 0:00:06.9]}
23... Bxg5 {[%clk 0:01:03.3]} 24. fxg5 {[%clk 0:00:07.5]} 24... Ne4 {[%clk
0:01:04]} 25. Kf4 {[%clk 0:00:05.5]} 25... Rh8 {[%clk 0:00:59.8]} 0-1

[Event "*** Titled Tuesday Blitz"]
[Site "Chess.com"]
[Date "2020.11.10"]
[Round "9"]
[White "Neftegor"]
[Black "Marianov_Podstavnikov"]
[Result "1-0"]
[WhiteElo "2466"]
[BlackElo "2260"]
[TimeControl "180+1"]
[EndTime "11:51:00 PST"]
[Termination "Neftegor won by resignation"]

1. d4 {[%clk 0:03:00.9]} 1... Nf6 {[%clk 0:02:59.8]} 2. c4 {[%clk 0:03:00.4]}
2... e6 {[%clk 0:03:00]} 3. Nc3 {[%clk 0:03:00.4]} 3... Bb4 {[%clk 0:03:00.1]}
4. e3 {[%clk 0:03:00.7]} 4... d5 {[%clk 0:02:59.7]} 5. cxd5 {[%clk 0:02:58.6]}
5... exd5 {[%clk 0:02:57.1]} 6. Bd3 {[%clk 0:02:58.6]} 6... O-O {[%clk
0:02:51.3]} 7. Ne2 {[%clk 0:02:58.7]} 7... c5 {[%clk 0:02:29.7]} 8. a3 {[%clk
0:02:57.6]} 8... Bxc3+ {[%clk 0:02:25.9]} 9. bxc3 {[%clk 0:02:57.7]} 9... b6
{[%clk 0:02:20.5]} 10. f3 {[%clk 0:02:56.6]} 10... Ba6 {[%clk 0:02:17]} 11. O-O
{[%clk 0:02:55.1]} 11... Re8 {[%clk 0:02:12]} 12. Ng3 {[%clk 0:02:54.4]} 12...
Qd7 {[%clk 0:02:09.2]} 13. Ra2 {[%clk 0:02:54.2]} 13... Bxd3 {[%clk 0:02:02.2]}
14. Qxd3 {[%clk 0:02:53.5]} 14... Qa4 {[%clk 0:02:01.3]} 15. e4 {[%clk
0:02:41.1]} 15... Nc6 {[%clk 0:01:33.8]} 16. e5 {[%clk 0:02:37.3]} 16... Nd7
{[%clk 0:01:33.7]} 17. Be3 {[%clk 0:02:34.3]} 17... Nf8 {[%clk 0:01:26.1]} 18.
Rd2 {[%clk 0:02:32.8]} 18... Ne6 {[%clk 0:01:20.8]} 19. f4 {[%clk 0:02:32.8]}
19... cxd4 {[%clk 0:00:48.6]} 20. cxd4 {[%clk 0:02:30.8]} 20... Nc7 {[%clk
0:00:47.3]} 21. f5 {[%clk 0:02:28.5]} 21... Qb5 {[%clk 0:00:45.8]} 22. Rc1
{[%clk 0:02:20.5]} 22... Rac8 {[%clk 0:00:34.8]} 23. Qc3 {[%clk 0:02:01.6]}
23... Na5 {[%clk 0:00:30.3]} 24. Rb2 {[%clk 0:01:50.2]} 24... Qd7 {[%clk
0:00:28.5]} 25. Qe1 {[%clk 0:01:25.8]} 25... Nc4 {[%clk 0:00:27.6]} 26. Rbc2
{[%clk 0:01:25.7]} 26... Nb5 {[%clk 0:00:19.6]} 27. a4 {[%clk 0:01:24.8]} 27...
Nba3 {[%clk 0:00:15.1]} 28. Rc3 {[%clk 0:01:21.7]} 28... Nxe3 {[%clk 0:00:15.4]}
29. Qxe3 {[%clk 0:01:21.1]} 29... Nc4 {[%clk 0:00:14.1]} 30. Qg5 {[%clk
0:01:13.7]} 30... h6 {[%clk 0:00:14.1]} 31. Qg4 {[%clk 0:01:11.9]} 31... Nd2
{[%clk 0:00:11.7]} 32. Nh5 {[%clk 0:01:10]} 1-0